Cogmind - Beta 11 X7 @@@ ROGUE MODE // 2021.08.25 @ 00:34:26 Player: PhenomPhear Result: Destroyed by P-60 Hacker with Shock Rifle Performance ------------- Evolutions (3) 1500 Regions Visited (8) 1600 Robots Destroyed (109) 545 Value Destroyed (2690) 2690 Prototype IDs (38) 760 Alien Tech Used (0) 0 Bonus (296) 296 TOTAL SCORE: 7391 Bonus ------- High Alert Combat Kills 131 Follower Combat Kills 93 Aligned with FarCom 300 Friendly Fire -228 Cogmind --------- Core Integrity 0/700 Matter 138/300 Energy 75/100 System Corruption 26% Temperature Warm (151) Movement Core (100) Ox1 Location -7/Factory Parts ------- > --- POWER (1) -------- (None) > --- PROPULSION (4) --- (None) > --- UTILITY (6) ------ Improved Signal Interpreter Modified TNC PSU Rigger > --- WEAPON (2) ------- Molecular Scythe > --- INVENTORY (5) ---- Heavy EM Shotgun Arc Projector Arc Projector Latent Energy Streamer Peak State ------------ > --- POWER ------------ Light Deuterium Engine > --- PROPULSION ------- Aluminum Leg Aluminum Leg Carbon-fiber Leg Carbon-fiber Leg > --- UTILITY ---------- Large Storage Unit Improved Signal Interpreter Modified TNC Maneuvering Thrusters Hacking Suite PSU Rigger > --- WEAPON ----------- Latent Energy Streamer Makeshift Spear > --- INVENTORY -------- Aluminum Leg Heavy EM Shotgun Shock Bomb Launcher Shock Bomb Launcher Mining Laser [Rating: 50] Favorites ----------- Power Light Deuterium Engine Engine Light Deuterium Engine Power Core Nuclear Core Propulsion Airjet Treads Light Treads Leg Carbon-fiber Leg Wheel Compact Wheel Hover Unit Airjet Flight Unit Improved Flight Unit Utility Hacking Suite Device Disposable Heat Sink Storage Medium Storage Unit Processor Salvage Targeting Computer Hackware Hacking Suite Protection Improved Power Shielding Weapon EM Shotgun Energy Gun EM Shotgun Energy Cannon Light EM Pulse Cannon Ballistic Gun Light Assault Rifle Ballistic Cannon Light Cannon Launcher Mini Grenade Launcher Impact Weapon Great Maul Slashing Weapon Molecular Scythe Piercing Weapon Makeshift Spear Build | -11 -10 -10 -9 -9 -9 -8 -8 -7 ------- Run | Scr Mat Min Mat Min Exi Min Mat Fac Slots Evolved 6 | . . . 2 . . . 2 2 Power . | . . . . . . . . . Propulsion 2 | . . . . . . . 2 . Utility 4 | . . . 2 . . . . 2 Weapon . | . . . . . . . . . Parts Attached 114 | 6 4 6 46 2 2 . 20 28 Power 7 | 1 . 1 2 . . . 2 1 Engine 6 | 1 . 1 2 . . . 2 . Core 1 | . . . . . . . . 1 Reactor . | . . . . . . . . . Propulsion 40 | 2 . . 17 . . . 13 8 Treads 4 | 2 . . 1 . . . . 1 Leg 14 | . . . . . . . 9 5 Wheel 1 | . . . 1 . . . . . Hover 16 | . . . 14 . . . 2 . Flight 5 | . . . 1 . . . 2 2 Utility 22 | 1 1 . 8 . 1 . 4 7 Device 6 | . . . 1 . 1 . 2 2 Storage 3 | 1 . . 1 . . . . 1 Processor 6 | . 1 . 1 . . . . 4 Hackware 4 | . . . 3 . . . 1 . Protection 3 | . . . 2 . . . 1 . Artifact . | . . . . . . . . . Weapon 45 | 2 3 5 19 2 1 . 1 12 Energy Gun 19 | . 3 3 8 1 . . . 4 Energy Cannon 4 | . . . 2 . . . . 2 Ballistic Gun 3 | 2 . . . . . . . 1 Ballistic Cannon 3 | . . . 3 . . . . . Launcher 13 | . . 2 6 1 . . 1 3 Special Weapon . | . . . . . . . . . Impact Weapon 1 | . . . . . . . . 1 Slashing Weapon 1 | . . . . . . . . 1 Piercing Weapon 1 | . . . . . 1 . . . Special Melee Weapon . | . . . . . . . . . Unidentified Prototypes 3 | . . . 2 . . . . 1 Corrupted Parts 4 | . . . 2 . . . . 2 System Corruption 19 | . . . 8 . . . . 11 Parts Lost 37 | . 1 . 10 . . 2 4 20 Power 4 | . . . 1 . . . 1 2 Propulsion 19 | . . . 4 . . 2 2 11 Utility 7 | . . . 2 . . . . 5 Weapon 7 | . 1 . 3 . . . 1 2 Highest Loss Streak 10 | . 1 . 4 . . 2 3 10 Average Slot Usage (%) 92 | . 99 100 93 100 85 76 91 81 Engine 10 | . 14 14 9 11 11 11 8 3 Treads 7 | . 28 28 3 . . . . 2 Leg 4 | . . . . . . . 20 21 Hover 11 | . . . 15 22 22 21 6 . Device 6 | . . . 9 11 8 . 1 9 Storage 10 | . 14 14 11 11 11 11 9 3 Processor 8 | . 13 14 9 . . . . 19 Hackware 6 | . . . 5 11 11 11 17 8 Protection 4 | . . . 5 11 11 11 7 . Energy Gun 13 | . 23 27 17 13 . . . 1 Launcher 1 | . . . . 8 . . 3 2 Piercing Weapon 2 | . . . . . 11 11 9 3 Naked Turns . | . . . . . . . . . Heaviest Build 36 | 11 14 17 26 24 20 19 20 36 Greatest Support 55 | 40 40 40 40 16 16 16 50 55 Greatest Overweight (x) 6 | . . . 4 1 1 6 2 1 Average Overweight (x) . | . . . . 1 1 1 . . Largest Inventory Capacity 15 | 8 8 8 10 10 10 10 10 15 Average Capacity 9 | 7 8 8 9 10 10 10 10 9 Most Carried 10 | 6 8 8 10 10 10 10 10 10 Average Carried 8 | 2 7 7 8 9 9 10 8 5 Final Capacity 10 | 8 8 8 10 10 10 10 10 5 Final Carried 10 | 6 8 8 10 10 10 10 10 4 Class Distribution -------------------- 80% | Mutant 14% | Scavenger-Mutant 4% | Hacker-Mutant Dominant Class ---------------- Mutant | -10/Materials Mutant | -10/Mines Mutant | -9/Materials Mutant | -9/Mines Mutant | -9/Exiles Mutant | -8/Mines Scavenger-Mutant | -8/Materials Mutant | -7/Factory Resources | -11 -10 -10 -9 -9 -9 -8 -8 -7 ----------- Run | Scr Mat Min Mat Min Exi Min Mat Fac Matter Collected 1673 | 235 60 82 680 40 . 30 343 203 Remotely . | . . . . . . . . . Salvage Created 3497 | . 248 210 1562 99 . 30 494 854 Parts 233 | . 20 16 95 9 . 3 26 64 Haulers Intercepted 6 | . . . 5 . . . 1 . Recyclers Shooed 4 | . 1 . 1 . . . . 2 Parts Field Recycled . | . . . . . . . . . Retrieved Matter . | . . . . . . . . . Parts Self-Destructed . | . . . . . . . . . Prevented . | . . . . . . . . . Kills | -11 -10 -10 -9 -9 -9 -8 -8 -7 ------- Run | Scr Mat Min Mat Min Exi Min Mat Fac Combat Hostiles Destroyed 69 | . 6 8 28 7 . . 8 12 Melee 8 | . . . . . . . 8 . Guns 24 | . 6 3 14 . . . . 1 Cannons 3 | . . . 3 . . . . . AOE 32 | . . 5 11 7 . . . 9 Classes Destroyed 15 | . 5 . 7 . . . 1 2 Worker 10 | . . . 1 . . 1 . 8 Builder 6 | . 1 . 2 . . . . 3 Tunneler 2 | . 1 . . . . . 1 . Hauler 6 | . . . 5 . . . 1 . Recycler 6 | . . . 3 . . . . 3 Mechanic 1 | . . . . . . . . 1 Operator 6 | . 2 . 3 . . . . 1 Watcher 2 | . . . 2 . . . . . Swarmer 25 | . 4 3 8 4 . . . 6 Grunt 25 | . 2 5 11 2 . . 5 . Brawler 2 | . . . 1 1 . . . . Duelist 1 | . . . 1 . . . . . Sentry 10 | . . . 7 . . . 2 1 Hunter 5 | . . . . . . . 1 4 Programmer 1 | . . . . . . . . 1 Thug 1 | . . . 1 . . . . . Best Kill Streak 15 | . 3 3 4 4 . 1 6 15 Combat Bots Only 5 | . 3 3 3 4 . . 5 3 Max Kills in Single Turn 8 | . 1 3 2 2 . 1 1 8 Gunslinging . | . . . . . . . . . Exploded 3 | . . 3 2 2 . . . 2 Melee 1 | . . . . . . . 1 . Uniques/NPCs Destroyed . | . . . . . . . . . Combat | -11 -10 -10 -9 -9 -9 -8 -8 -7 -------- Run | Scr Mat Min Mat Min Exi Min Mat Fac Damage Taken 4382 | . 195 10 1128 122 . 107 445 2375 Core 964 | . 14 . 164 27 . 13 41 705 Absorbed by Shields . | . . . . . . . . . Core Remaining (%) 83 | 100 . 94 . . . 49 92 . Volleys Fired 163 | . 19 6 94 9 . . . 35 Largest 2 | . 2 2 2 1 . . . 1 Hottest 131 | . 90 90 131 30 . . . 60 Shots Fired 262 | . 33 10 174 10 . . . 35 Gun 183 | . 33 8 130 1 . . . 11 Cannon 32 | . . . 29 . . . . 3 Launcher 47 | . . 2 15 9 . . . 21 Special . | . . . . . . . . . Kinetic 15 | . . . 11 . . . . 4 Thermal 67 | . . . 66 1 . . . . Explosive 26 | . . 2 15 9 . . . . Electromagnetic 154 | . 33 8 82 . . . . 31 Robot Hit Streak 15 | . 7 5 9 10 . . . 15 Robot Miss Streak 4 | . 4 1 4 . . . . 4 Penetration Max . | . . . . . . . . . Secondary Targets 1 | . . . 1 . . . . . Max Gunslinging Chain 1 | . . . 1 . . . . . Shots Hit Robots 181 | . 25 8 110 6 . 1 19 12 Core Hits 182 | . 19 13 74 8 . 1 15 52 Critical Kills . | . . . . . . . . . Critical Parts Destroyed . | . . . . . . . . . Critical Strikes 6 | . . . 4 . . . 2 . Burn 4 | . . . 4 . . . . . Puncture 2 | . . . . . . . 2 . Melee Attacks 36 | . . . . . . 1 32 3 Impact 2 | . . . . . . . . 2 Slashing . | . . . . . . . . . Piercing 34 | . . . . . . 1 32 1 Sneak Attacks 3 | . . . . . . 1 2 . Combat Hostiles . | . . . . . . . . . Follow-up Attacks . | . . . . . . . . . Damage Inflicted 8018 | . 405 402 2884 555 . 97 645 3030 Guns 1954 | . 368 115 1309 18 . . . 144 Cannons 517 | . . . 502 . . . . 15 Explosions 4733 | . 37 285 1072 537 . . . 2802 Melee 811 | . . . . . . 97 645 69 Ramming 3 | . . 2 1 . . . . . Kinetic 201 | . . . 104 . . . . 97 Thermal 1951 | . 37 33 1018 18 . . . 845 Explosive 1477 | . . 252 688 537 . . . . Electromagnetic 3575 | . 368 115 1073 . . . . 2019 Impact 32 | . . . . . . . . 32 Slashing . | . . . . . . . . . Piercing 779 | . . . . . . 97 645 37 Highest Corruption 26 | . 1 1 10 10 10 10 . 26 Average Corruption 6 | . 1 1 8 10 10 10 . 2 Corruption Purged . | . . . . . . . . . Effects 126 | . 1 6 60 25 14 13 . 7 Message Errors 42 | . . 3 18 7 5 6 . 3 Matter Fused 29 | . . . 17 7 3 2 . . Heat Flow Errors 19 | . . . 8 5 3 1 . 2 Energy Discharges 15 | . 1 3 5 2 1 3 . . Data Loss (minor) 7 | . . . 5 1 1 . . . Data Loss (major) 3 | . . . 1 2 . . . . Misfires 5 | . . . 4 1 . . . . Alerts 2 | . . . 1 . 1 . . . Misdirections 4 | . . . 1 . . 1 . 2 Overload Shots . | . . . . . . . . . Overflow Damage 299 | . . . 77 11 . . . 211 Projectiles 42 | . . . 42 . . . . . Explosions 257 | . . . 35 11 . . . 211 Melee . | . . . . . . . . . Knockbacks 3 | . . 1 2 . . . . . Impact 1 | . . 1 . . . . . . Kinetic 2 | . . . 2 . . . . . Secondary . | . . . . . . . . . Self-Inflicted Damage 218 | . . . 125 24 . . . 69 Shots 6 | . . . 4 1 . . . 1 Rammed 2 | . . 1 1 . . . . . Targets Rammed 2 | . . 1 1 . . . . . Kicked . | . . . . . . . . . Crushed . | . . . . . . . . . Highest Temperature 277 | . 138 60 277 184 185 149 . 201 Average Temperature 79 | . 45 24 88 71 92 76 . 64 Received Heat Transfer 687 | . 24 . 246 18 . 63 153 183 Siege Activations . | . . . . . . . . . Robots Corrupted 2 | . . . . . . . . 2 Combat Hostiles 2 | . . . . . . . . 2 Parts Fried 12 | . 5 . 4 . . . . 3 Impact Corruptions . | . . . . . . . . . Robots Melted . | . . . . . . . . . Combat Hostiles . | . . . . . . . . . Parts Melted 6 | . . . 6 . . . . . Heat Transferred 3038 | . . 50 2276 37 . . . 675 Parts Sabotaged . | . . . . . . . . . Parts Stolen . | . . . . . . . . . Parts Stripped . | . . . . . . . . . Power Chain Reactions 12 | . 1 . 7 . . . . 4 Missiles Intercepted . | . . . . . . . . . Latent Energy Used 551 | . . . . . . . . 551 LE Corruption 9 | . . . . . . . . 9 Alert | -11 -10 -10 -9 -9 -9 -8 -8 -7 ------- Run | Scr Mat Min Mat Min Exi Min Mat Fac Peak Influence 993 | . 187 149 484 272 . 5 226 993 Initial 152 | . . 72 21 152 . . . 18 Average 195 | . 99 72 355 195 . . 78 147 Maximum Alert Level 3 | . . . 2 1 . . 1 3 Low Security (%) 59 | 100 100 100 10 59 . 100 88 81 Level 1 23 | . . . 43 40 . . 11 14 Level 2 16 | . . . 45 . . . . . Level 3 . | . . . . . . . . 3 Level 4 . | . . . . . . . . . Level 5 . | . . . . . . . . . High Security . | . . . . . . . . . Max Security . | . . . . . . . . . Squads Dispatched 10 | . 1 . 5 . . . . 4 Investigation 2 | . . . 2 . . . . . Extermination 1 | . . . . . . . . 1 Reinforcement 7 | . 1 . 3 . . . . 3 Assault . | . . . . . . . . . Garrison . | . . . . . . . . . Intercept . | . . . . . . . . . Construction Impeded 2 | . . . 1 . . . . 1 Haulers Reinforced . | . . . . . . . . . Active Scanning Responses . | . . . . . . . . . Cargo Convoy Interrupts 1 | . . . . . . . . 1 Stealth | -11 -10 -10 -9 -9 -9 -8 -8 -7 --------- Run | Scr Mat Min Mat Min Exi Min Mat Fac Distress Signals 9 | . 2 . 6 . . . . 1 Communications Jammed . | . . . . . . . . . Distress Signals . | . . . . . . . . . Times Spotted 129 | . 11 7 44 7 . 3 9 48 Peak Tracking Total 14 | . 4 3 6 4 . 3 4 14 Tactical Retreats 4 | . 1 . . . . . . 3 Traps | -11 -10 -10 -9 -9 -9 -8 -8 -7 ------- Run | Scr Mat Min Mat Min Exi Min Mat Fac Traps Triggered 10 | . 1 . 5 . . . 2 2 Indirectly . | . . . . . . . . . Trap Hack Attempts . | . . . . . . . . . Triggered . | . . . . . . . . . Disarmed . | . . . . . . . . . Reprogrammed . | . . . . . . . . . Reused 2 | . . . 2 . . . . . Traps Extracted . | . . . . . . . . . Installed 3 | . . . 3 . . . . . Triggered 2 | . . . 2 . . . . . Machines | -11 -10 -10 -9 -9 -9 -8 -8 -7 ---------- Run | Scr Mat Min Mat Min Exi Min Mat Fac Machines Disabled 21 | . . 1 3 2 . . . 15 Max in Single Turn 15 | . . 1 1 1 . . . 15 Machines Sabotaged . | . . . . . . . . . Garrisons Compromised . | . . . . . . . . . Overloaded Fab Kills . | . . . . . . . . . Fab Network Shutdowns . | . . . . . . . . . Hacking | -11 -10 -10 -9 -9 -9 -8 -8 -7 --------- Run | Scr Mat Min Mat Min Exi Min Mat Fac Machines Accessed 19 | . 2 . 10 . 1 . 6 . Terminals 14 | . 2 . 6 . . . 6 . Fabricators . | . . . . . . . . . Repair Stations 1 | . . . 1 . . . . . Recycling Units 1 | . . . 1 . . . . . Scanalyzers 2 | . . . 2 . . . . . Garrison Access . | . . . . . . . . . Total Hacks 62 | . 3 . 29 . 1 . 29 . Successful 29 | . 2 . 15 . 1 . 11 . Failed 33 | . 1 . 14 . . . 18 . Catastrophic 8 | . . . 4 . . . 4 . Database Lockouts . | . . . . . . . . . Manual 36 | . 3 . 6 . 1 . 26 . Terminals 47 | . 3 . 15 . . . 29 . Fabricators . | . . . . . . . . . Repair Stations 2 | . . . 2 . . . . . Recycling Units 4 | . . . 4 . . . . . Scanalyzers 8 | . . . 8 . . . . . Garrison Access . | . . . . . . . . . Terminal Hacks 16 | . 1 . 4 . 1 . 10 . Part Schematic 2 | . . . . . . . 2 . Prototype ID Bank 7 | . . . 1 . . . 6 . Branch Access Points 2 | . . . 1 . . . 1 . Terminal Index 1 | . . . . . . . 1 . Scanalyzer Index 1 | . . . 1 . . . . . Locate Traps 1 | . . . 1 . . . . . Recall Reinforcements 1 | . 1 . . . . . . . EX-Prototype ID Bank 1 | . . . . . 1 . . . Fabricator Hacks . | . . . . . . . . . Repair Station Hacks 2 | . . . 2 . . . . . Scan Component 1 | . . . 1 . . . . . Repair 1 | . . . 1 . . . . . Recycling Unit Hacks 1 | . . . 1 . . . . . Retrieve Components 1 | . . . 1 . . . . . Scanalyzer 8 | . . . 8 . . . . . Insert Component 4 | . . . 4 . . . . . Analyze 4 | . . . 4 . . . . . Garrison Access Hacks . | . . . . . . . . . Unauthorized Hacks 2 | . 1 . . . . . 1 . Terminals 2 | . 1 . . . . . 1 . Botnet 1 | . . . . . . . 1 . Disrupt 1 | . 1 . . . . . . . Fabricators . | . . . . . . . . . Repair Stations . | . . . . . . . . . Recycling Units . | . . . . . . . . . Scanalyzers . | . . . . . . . . . Garrison Access . | . . . . . . . . . Data Cores Recovered 2 | . 1 . 1 . . . . . Used . | . . . . . . . . . Hacking Detections 17 | . 1 . 10 . . . 6 . Full Trace Events 4 | . . . 2 . . . 2 . Feedback Events . | . . . . . . . . . Feedback Blocked . | . . . . . . . . . Robot Schematics Acquired . | . . . . . . . . . Robots Built . | . . . . . . . . . Matter . | . . . . . . . . . Time . | . . . . . . . . . Total Robot Build Rating . | . . . . . . . . . Part Schematics Acquired 6 | . . . 4 . . . 2 . Parts Built . | . . . . . . . . . Matter . | . . . . . . . . . Time . | . . . . . . . . . Total Part Build Rating . | . . . . . . . . . Parts Repaired 1 | . . . 1 . . . . . Time 32 | . . . 32 . . . . . Parts Recycled . | . . . . . . . . . Recycled Matter . | . . . . . . . . . Retrieved Matter . | . . . . . . . . . Retrieved Components 10 | . . . 10 . . . . . Parts Scanalyzed 4 | . . . 4 . . . . . Part Schematics Acquired 4 | . . . 4 . . . . . Parts Damaged 1 | . . . 1 . . . . . Bothacking | -11 -10 -10 -9 -9 -9 -8 -8 -7 ------------ Run | Scr Mat Min Mat Min Exi Min Mat Fac Used RIF Installer . | . . . . . . . . . Robots Hacked . | . . . . . . . . . Non-combat . | . . . . . . . . . Combat . | . . . . . . . . . Robot Hacks Applied . | . . . . . . . . . Relay Couplers Released . | . . . . . . . . . Robots Rewired 1 | . . . . . . . . 1 Allies Hacked . | . . . . . . . . . Hacks Repelled . | . . . . . . . . . Allies | -11 -10 -10 -9 -9 -9 -8 -8 -7 -------- Run | Scr Mat Min Mat Min Exi Min Mat Fac Total Allies 3 | . . 2 . . . . . 1 Largest Group 2 | . . 2 2 . . . . 1 Highest-Rated Group 42 | . . 42 42 . . . . 30 Highest-Rated Ally 31 | . . 31 31 . . . . 30 Total Orders . | . . . . . . . . . Ally Attacks 22 | . . 9 9 . . . . 4 Total Damage 349 | . . 105 144 . . . . 100 Kills 4 | . . 1 2 . . . . 1 Allies Corrupted 1 | . . . . . . . . 1 Allies Melted . | . . . . . . . . . Intel | -11 -10 -10 -9 -9 -9 -8 -8 -7 ------- Run | Scr Mat Min Mat Min Exi Min Mat Fac Robot Analysis Total . | . . . . . . . . . Derelict Logs Recovered 3 | . . 1 . 2 . . . . Drone Launches . | . . . . . . . . . Drone Recoveries . | . . . . . . . . . Exploration | -11 -10 -10 -9 -9 -9 -8 -8 -7 ------------- Run | Scr Mat Min Mat Min Exi Min Mat Fac Turns Passed 6035 | 78 355 952 2059 605 399 365 463 759 Spaces Moved 4099 | 43 174 570 1321 503 336 312 285 555 Core 281 | 4 . . 5 . . 1 . 271 Treads 934 | 39 174 570 141 . . . . 10 Legs 455 | . . . . . . . 182 273 Wheels 95 | . . . 95 . . . . . Hover 2333 | . . . 1080 503 336 311 103 . Flight 1 | . . . . . . . . 1 Fastest Speed 50 | 50 160 160 115 116 116 116 116 50 Average Speed 122 | 149 160 160 121 116 116 117 121 86 Slowest Speed 350 | 160 160 160 250 116 116 350 190 200 Overloaded Moves . | . . . . . . . . . Propulsion Burnouts . | . . . . . . . . . Robots Hopped . | . . . . . . . . . Cave-ins Triggered . | . . . . . . . . . Exploration Rate (%) 54 | 4 32 99 95 96 70 58 22 14 Regions Visited 8 Branch Regions 4 Pre-discovered Areas . | . . . . . . . . . Known Exits Taken 1 | . . . 1 . . . . . Unknown Exits Taken 7 | 1 1 1 . 1 1 1 1 . Scrap Searched 3 | . . 1 . 2 . . . . Spaces Dug 30 | . . . 28 . . . 2 . Terrain Destroyed 208 | . 2 32 116 30 . . 2 26 Melee 2 | . . . . . . . 2 . Projectile . | . . . . . . . . . AOE 206 | . 2 32 116 30 . . . 26 Terrain Rammed . | . . . . . . . . . Walls Destroyed . | . . . . . . . . . Machines Disabled . | . . . . . . . . . Actions | -11 -10 -10 -9 -9 -9 -8 -8 -7 --------- Run | Scr Mat Min Mat Min Exi Min Mat Fac Total 4798 | 54 220 599 1595 515 347 312 366 790 Wait 268 | . 11 9 89 . . . 18 141 Move 4091 | 42 173 569 1320 502 335 311 284 555 Hop . | . . . . . . . . . Pick Up 48 | 6 6 4 18 1 4 . 5 4 Fast Attach 52 | 6 3 . 20 . 1 . 12 10 Attach 27 | . 1 . 7 . 1 . 6 12 Detach 9 | . 2 . 3 . . . 1 3 Swap 35 | . . 6 19 2 . . 2 6 Drop 51 | . 5 4 21 1 6 . 6 8 Fire 163 | . 19 6 94 9 . . . 35 Melee 36 | . . . . . . 1 32 3 Ram . | . . . . . . . . . Kick . | . . . . . . . . . Crush 2 | . . 1 1 . . . . . Escape Stasis 10 | . . . . . . . . 10 Rewire 3 | . . . . . . . . 3 Trap 3 | . . . 3 . . . . . Miscellaneous . | . . . . . . . . . Route ------- -11/Scrapyard -10/Materials (discovered 2 exits: *Mat / [*Min]) -10/Mines (discovered 2 exits: *Mat x2) -9/Materials (discovered 5 exits: *Mat x3 / *Min x2) -9/Mines (discovered 3 exits: *Mat x2 / *Exi) -9/Exiles (discovered 2 exits: [*Min x2]) -8/Mines -8/Materials -7/Factory (discovered 3 exits: *Fac x2 / *Low) History --------- Turn | Location | Event 10 | -11/Scrapyard | Discovered new exit (range 15) 79 | -11/Scrapyard | Entered Materials 304 | -10/Materials | Discovered new exit (range 10) 308 | -10/Materials | Build established: Mutant 379 | -10/Materials | Discovered new exit (range 13) 434 | -10/Materials | Entered Mines 441 | -10/Mines | Received a Rocket Launcher from a helpful Derelict 471 | -10/Mines | Found a hidden stash of uninstalled traps 1000 | -10/Mines | Discovered new exit (range 12) 1072 | -10/Mines | Learned Materials security intel 1330 | -10/Mines | Discovered new exit (range 10) 1386 | -10/Mines | Entered Materials 1386 | -9/Materials | Accompanied by 2 allies 1386 | -9/Materials | Evolved 2 slots: Utility x2 1391 | -9/Materials | Led the pair of lost Derelicts to an unsafe place 1763 | -9/Materials | Lost 4 parts (1p2n1u) 2129 | -9/Materials | Discovered new exit (range 16) 2189 | -9/Materials | Repaired Imp. Hover Unit 2464 | -9/Materials | Discovered new exit (range 14) 2662 | -9/Materials | System corruption reached 10% 2964 | -9/Materials | Discovered new exit (range 12) 3088 | -9/Materials | Lost 3 parts (2n1u) 3132 | -9/Materials | Discovered new exit (range 8) 3182 | -9/Materials | Identified exit to Mines 3445 | -9/Materials | Entered Mines 3491 | -9/Mines | Deemed a non-threat by the Exiles lab entrance 3492 | -9/Mines | Discovered new exit (range 5) 3719 | -9/Mines | Learned Materials interactive machine intel 3762 | -9/Mines | A weapon hastily lodged in a ceiling crevice suddenly fell to the ground 3806 | -9/Mines | Learned Materials terminal intel 3829 | -9/Mines | Discovered new exit (range 4) 3889 | -9/Mines | Discovered new exit (range 8) 4050 | -9/Mines | Entered Exiles 4073 | -9/Exiles | Discovered new exit (range 15) 4087 | -9/Exiles | Met 8R-AWN 4105 | -9/Exiles | Met EX-HEX 4139 | -9/Exiles | Met EX-BIN 4178 | -9/Exiles | Aligned with FarCom system 4180 | -9/Exiles | Given EX-Vault access code 4206 | -9/Exiles | Opened EX-Vault 4221 | -9/Exiles | Found Latent Energy Streamer 4227 | -9/Exiles | Found Modified TNC 4230 | -9/Exiles | Found PSU Rigger 4253 | -9/Exiles | Warned to stay clear of 0b10 Research branches 4284 | -9/Exiles | Met EX-DEC 4439 | -9/Exiles | Discovered new exit (range 10) 4449 | -9/Exiles | Stole three prototypes: Modified TNC, PSU Rigger, Latent Energy Streamer 4449 | -9/Exiles | Entered Mines 4802 | -8/Mines | Discovered new exit (range 9) 4814 | -8/Mines | Core integrity fell below 50% 4814 | -8/Mines | Entered Materials 4814 | -8/Materials | Evolved 2 slots: Propulsion x2 4815 | -8/Materials | Loaded intel: 19 interactive machine locations 4816 | -8/Materials | Loaded intel: 12 terminal locations 5001 | -8/Materials | Lost 3 parts (2n1w) 5189 | -8/Materials | Discovered new exit (range 15) 5277 | -8/Materials | Entered Factory 5277 | -7/Factory | Evolved 2 slots: Utility x2 5279 | -7/Factory | FarCom data flow suspended 5315 | -7/Factory | Build established: Scavenger-Mutant 5353 | -7/Factory | Discovered new exit (range 4) 5357 | -7/Factory | Identified exit to Factory 5359 | -7/Factory | Discovered new exit (range 10) 5407 | -7/Factory | Identified exit to Lower Caves 5538 | -7/Factory | Discovered exit to Factory (range 16) 5696 | -7/Factory | Lost 4 parts (3n1u) 5923 | -7/Factory | Build established: Mutant 6001 | -7/Factory | Cargo convoy interrupted 6010 | -7/Factory | System corruption reached 10% 6023 | -7/Factory | Core integrity fell below 50% 6035 | -7/Factory | Core integrity fell below 20% 6035 | -7/Factory | Found Corrupted Prototype Slashing Weapon 6035 | -7/Factory | Identified Molecular Scythe 6036 | -7/Factory | Destroyed by P-60 Hacker with Shock Rifle Last Messages --------------- 06026_ U-05 Engineer lays Concrete. 06027_ Xenon Bombardment Thruster destroyed. 06027_ U-05 Engineer lays Concrete. 06028_ K-01 Serf collects debris. 06029_ U-05 Engineer lays Concrete. 06030_ Arm. Treads destroyed. 06031_ U-05 Engineer lays Concrete. 06031_ Penetrated by Slug. 06031_ Xenon Bombardment Thruster destroyed. 06032_ Nuclear Core destroyed. 06032_ U-05 Engineer builds a Wall. 06033_ System corrupted: Heat flow error (+235). 06033_ Imp. Carbon-fiber Leg destroyed. 06033_ Acquired 20 matter. 06034_ Hacking Suite destroyed. 06034_ Penetrated by Slug. 06034_ Targeting Computer destroyed. 06035_ Acquired Corrupted Prototype Slashing Weapon. 06035_ Identified Molecular Scythe. 06035_ Integrated Corrupted Molecular Scythe (+10). Map ----- +----------------------------------------------------+ | ???????????????"" # ## #????? | | ????????????# """ # ## """"""" #????? | | ????????????# # ## """"""" #????? | | ????????????# """ # ## """"""" #????? | | ????????????# """ # ## """"""" #????? | | #######?????? """ # ??# #????? | | #???????? ?? ????# #????? | | ###########+######+#############+########### | | # a | | # | | + a | | # | | # | | ##### ################ ############+#### | | #???# #??# ] # #????????? ?? | | #???# #??# ^ [ # #??????? | | #???# #??# # +?????# | | #???# #### i # #?????# | | #######???# / ! gr [=#?????# | | ??????????# #### *! gg g*%%[#?????# | | ??????????# ## # %! *]%=% #?????# | | ??????????# ###;; [! p!#!% #?????# | | ??????????#% ==!p=u #?????# | | ??????????# % !%!*% #?????# | | ??????????# t pxp !*[ #?????# | | ??????????#" =r = @ #?????# | | ??????????#" s #?????########### | | ??????????# s ######### #????????????? | | ??????????# s #???????? #????????????? | | ??????? ^ * #????????? #????????????? | | ???? ! /????????? #????????????? | | ???? ! # ????????? #????????????? | | ??? " ???????? #????????????? | | ???? "? ???????? #????????????? | | ???? ! " ????????? ???????????????? | | ???? " ? ????????????????????????? | | ????? " ???????????????????????? | | ??????? # ? ????????????????????????? | | ????????? " ???????????????????????????? | | ???????????? " ????????????????????????????? | | ?????????????? #?????????????????????????????? | | ??????????????? ??????????????????????????????? | | ?????????????????????????????????????????????????? | | ?????????????????????????????????????????????????? | | ?????????????????????????????????????????????????? | | ?????????????????????????????????????????????????? | | ?????????????????????????????????????????????????? | | ?????????????????????????????????????????????????? | | ?????????????????????????????????????????????????? | | ?????????????????????????????????????????????????? | +----------------------------------------------------+ Best States ------------- Heat Dissipation 45 Coolant Potential 50 Energy Generation 14 Energy Capacity 265 Matter Stores 300 Matter Capacity 300 Sight Range 16 Terrain Scan Density 10 Core Shielding 20 Power Shielding 66 Evasion (%) 58 Targeting Accuracy 10 Recoil Reduction 2 Salvage Targeting 1 Offensive Hacking 20 Defensive Hacking 10 Item Schematics ----------------- Imp. Hover Unit | -9/Materials | Scanalyzed Imp. Flight Unit | -9/Materials | Scanalyzed Lgt. Cannon | -9/Materials | Scanalyzed Mni. Grenade Launcher | -9/Materials | Scanalyzed Hacking Suite | -8/Materials | Hacked System Shield | -8/Materials | Hacked Robot Schematics ------------------ None Fabricated ------------ Nothing Alien Tech Used ----------------- None Achievements -------------- None Challenges ------------ None Game ------ Seed DataUtilityInverter Manual? 0 Play Time 00:59:52 Cumulative 1089.0 hours Start 2021.08.24 @ 23:29:17 End 2021.08.25 @ 00:34:26 Sessions 1 Manual Loads 0 Difficulty Rogue Special Mode None Game No. 683 Rogue 683 Adventurer 0 Explorer 0 Win Type - Total 18 Types 10/1/4/3/0/0/0/0/0 Lore% 88 Gallery% 90 Achievement% 81 Wizard Run 0 Options --------- ASCII 0 Keyboard 0 Movement Mouse Keybinds 0 Fullscreen 1 Font 24/Smallcaps Map View 76x50 Tactical HUD 1 Map Filters NONE Filters NONE Steam 1 RUN: cbdb8a1c-8355-4cf8-8476-0e369417bde2